[Event "2nd Goa GM Open 2019"]
[Site "Goa"]
[Date "2019.06.22"]
[Round "7.22"]
[White "Raahul V S"]
[Black "Vasquez Schroeder, Rodrigo"]
[Result "0-1"]
[ECO "E92"]
[WhiteElo "2292"]
[BlackElo "2476"]
[Annotator "ChessBase"]
[PlyCount "110"]
[EventDate "2019.06.17"]
[EventType "swiss"]
[EventCountry "IND"]
[SourceTitle "playchess.com"]
[Source "ChessBase"]
[SourceQuality "1"]
[TimeControl "5400+30"]

1. c4 {[%emt 0:00:00]} g6 {[%emt 0:00:00]} 2. Nc3 {[%emt 0:00:00]} Bg7 {[%emt 0:00:00]} 3. d4 {[%emt 0:00:00]} Nf6 {[%emt 0:00:31]} 4. e4 {[%emt 0:00:02]} d6 {[%emt 0:00:07]} 5. Nf3 {[%emt 0:01:06]} O-O {[%emt 0:00:09]} 6. Be2 {[%emt 0:00:04]} e5 {[%emt 0:01:17]} 7. d5 {[%emt 0:01:42]} a5 {[%emt 0:00:53]} 8. Bg5 {[%emt 0:00:06]} h6 {[%emt 0:01:06]} 9. Be3 {[%emt 0:00:06]} Ng4 {[%emt 0:10:43]} 10. Bd2 {[%emt 0:00:07]} Na6 {[%emt 0:00:38]} 11. h3 {[%emt 0:05:00]} Nf6 {[%emt 0:00:08]} 12. g4 {[%emt 0:00:06]} Nc5 {[%emt 0:00:50]} 13. Qc2 {[%emt 0:00:36]} c6 {[%emt 0:08:11]} 14. g5 {[%emt 0:08:51]} hxg5 {[%emt 0:00:28]} 15. Bxg5 {[%emt 0:00:28]} cxd5 {[%emt 0:00:16]} 16. Bxf6 {[%emt 0:12:21]} Bxf6 {[%emt 0:06:52]} 17. Nxd5 {[%emt 0:00:22]} Be6 {[%emt 0:00:17]} 18. O-O-O {[%emt 0:00:45]} Bxd5 {[%emt 0:00:49]} 19. Rxd5 {[%emt 0:08:46]} Qe7 {[%emt 0:01:31]} 20. Rhd1 {[%emt 0:04:16]} Ra6 {[%emt 0:00:52]} 21. Bf1 {[%emt 0:00:15]} Rc8 {[%emt 0:04:28]} 22. Kb1 {[%emt 0:01:39]} Rb6 {[%emt 0:00:57]} 23. Ng1 {[%emt 0:01:49]} Bh4 {[%emt 0:02:01]} 24. f3 {[%emt 0:14:30]} Qf6 {[%emt 0:14:21]} 25. Qd2 {[%emt 0:02:39]} Rcc6 {[%emt 0:00:33]} 26. Qxa5 {[%emt 0:01:59]} Bf2 {[%emt 0:00:31]} 27. Be2 {[%emt 0:03:23]} Qg5 {[%emt 0:01:13]} 28. Qd2 {[%emt 0:00:20]} Qg3 {[%emt 0:03:32]} 29. Qc1 {[%emt 0:01:14]} Na4 {[%emt 0:00:40]} 30. b3 {[%emt 0:00:27]} Bd4 {[%emt 0:00:51]} 31. R1xd4 {[%emt 0:07:16]} exd4 32. Rxd4 {[%emt 0:00:06]} Qf2 {[%emt 0:01:06]} 33. Rd5 {[%emt 0:00:53]} Rc5 {[%emt 0:00:33]} 34. Rd1 {[%emt 0:02:52]} Ra5 {[%emt 0:02:00]} 35. Qd2 {[%emt 0:00:16]} Ra8 {[%emt 0:01:29]} 36. f4 {[%emt 0:02:59]} Nc5 {[%emt 0:00:29]} 37. Bf3 {[%emt 0:04:35]} Qxd2 {[%emt 0:00:49]} 38. Rxd2 {[%emt 0:00:01]} Re8 {[%emt 0:00:11]} 39. e5 {[%emt 0:00:14]} dxe5 {[%emt 0:00:33]} 40. Rd5 {[%emt 0:00:10]} exf4 {[%emt 0:01:25]} 41. Rxc5 {[%emt 0:01:00]} Re1+ {[%emt 0:00:04]} 42. Kb2 {[%emt 0:00:03]} Rxg1 {[%emt 0:00:05]} 43. Rc8+ {[%emt 0:00:09]} Kg7 {[%emt 0:00:04]} 44. c5 {[%emt 0:00:03]} Rf6 {[%emt 0:01:41]} 45. b4 {[%emt 0:01:15]} Rg3 {[%emt 0:00:36]} 46. Bxb7 {[%emt 0:00:07]} Re6 {[%emt 0:00:36]} 47. Rd8 {[%emt 0:02:02]} Re2+ {[%emt 0:00:05]} 48. Kc1 {[%emt 0:00:03]} Rxa2 {[%emt 0:00:11]} 49. Rd1 {[%emt 0:00:38]} Rc3+ {[%emt 0:07:06]} 50. Kb1 {[%emt 0:00:08]} Ra4 {[%emt 0:00:06]} 51. Kb2 {[%emt 0:02:21]} Rc4 {[%emt 0:00:09]} 52. c6 {[%emt 0:00:34]} Raxb4+ {[%emt 0:00:06]} 53. Ka3 {[%emt 0:00:01]} Rb6 {[%emt 0:00:16]} 54. Rd7 {[%emt 0:00:21]} Rbxc6 {[%emt 0:00:21]} 55. Bxc6 {[%emt 0:00:07]} Rxc6 {[%emt 0:00:05]} 0-1

[Event "2nd Goa GM Open 2019"]
[Site "Goa"]
[Date "2019.06.22"]
[Round "7.23"]
[White "Moksh Amit Doshi"]
[Black "Vignesh N R"]
[Result "0-1"]
[ECO "A61"]
[WhiteElo "2268"]
[BlackElo "2459"]
[Annotator "ChessBase"]
[PlyCount "90"]
[EventDate "2019.06.17"]
[EventType "swiss"]
[EventCountry "IND"]
[SourceTitle "playchess.com"]
[Source "ChessBase"]
[SourceQuality "1"]
[TimeControl "5400+30"]

1. d4 {[%emt 0:00:00]} Nf6 {[%emt 0:00:29]} 2. c4 {[%emt 0:00:00]} e6 {[%emt 0:00:06]} 3. Nf3 {[%emt 0:00:11]} c5 {[%emt 0:02:19]} 4. d5 {[%emt 0:01:39]} exd5 {[%emt 0:00:53]} 5. cxd5 {[%emt 0:00:08]} d6 {[%emt 0:00:02]} 6. Nc3 {[%emt 0:00:10]} g6 {[%emt 0:00:05]} 7. e4 {[%emt 0:00:31]} Bg7 {[%emt 0:00:07]} 8. h3 {[%emt 0:00:05]} O-O {[%emt 0:00:06]} 9. Bd3 {[%emt 0:00:06]} Re8 {[%emt 0:01:32]} 10. O-O {[%emt 0:00:53]} a6 {[%emt 0:01:09]} 11. a4 {[%emt 0:00:29]} Nbd7 {[%emt 0:05:53]} 12. Bf4 {[%emt 0:04:14]} Qe7 {[%emt 0:05:54]} 13. Re1 {[%emt 0:03:42]} Nh5 {[%emt 0:03:35]} 14. Bg5 {[%emt 0:04:40]} Bf6 {[%emt 0:01:10]} 15. Bh6 {[%emt 0:04:11]} Ne5 {[%emt 0:04:14]} 16. Be2 {[%emt 0:04:22]} Bg7 {[%emt 0:04:47]} 17. Qd2 {[%emt 0:03:22]} Bxh6 {[%emt 0:00:30]} 18. Qxh6 {[%emt 0:00:30]} Nxf3+ {[%emt 0:00:30]} 19. Bxf3 {[%emt 0:00:30]} Nf6 {[%emt 0:00:30]} 20. Be2 {[%emt 0:00:18]} Qf8 {[%emt 0:09:56]} 21. Qh4 {[%emt 0:19:19]} Qg7 {[%emt 0:07:32]} 22. Bf1 {[%emt 0:02:52]} g5 {[%emt 0:00:51]} 23. Qg3 {[%emt 0:00:11]} Re5 {[%emt 0:00:04]} 24. Bd3 {[%emt 0:08:01]} Bd7 {[%emt 0:03:16]} 25. a5 {[%emt 0:09:51]} Rae8 {[%emt 0:00:30]} 26. f3 Nh5 {[%emt 0:03:53]} 27. Qf2 {[%emt 0:01:15]} Nf4 {[%emt 0:00:15]} 28. Bf1 {[%emt 0:00:15]} f5 {[%emt 0:02:24]} 29. g3 {[%emt 0:04:05]} Ng6 {[%emt 0:04:06]} 30. exf5 {[%emt 0:04:49]} Bxf5 {[%emt 0:01:20]} 31. Rxe5 {[%emt 0:02:31]} Nxe5 {[%emt 0:00:49]} 32. Re1 {[%emt 0:02:02]} Rf8 {[%emt 0:01:37]} 33. Re3 {[%emt 0:01:06]} Qh6 {[%emt 0:01:50]} 34. g4 {[%emt 0:02:27]} Bg6 {[%emt 0:00:52]} 35. Qg3 {[%emt 0:02:24]} Qg7 {[%emt 0:01:13]} 36. Na4 Rf4 {[%emt 0:09:57]} 37. Nb6 {[%emt 0:02:20]} Qf6 {[%emt 0:00:13]} 38. Be2 {[%emt 0:00:21]} Rd4 {[%emt 0:00:57]} 39. b3 {[%emt 0:01:16]} Bf7 {[%emt 0:01:00]} 40. Re4 {[%emt 0:03:14]} Bg6 {[%emt 0:01:10]} 41. Re3 {[%emt 0:00:15]} Kg7 {[%emt 0:01:40]} 42. Bc4 {[%emt 0:01:45]} Rd1+ {[%emt 0:01:47]} 43. Kf2 {[%emt 0:01:33]} Rd2+ {[%emt 0:00:33]} 44. Re2 {[%emt 0:01:23]} Rd1 {[%emt 0:03:22]} 45. Kg2 {[%emt 0:02:17]} Nxf3 {[%emt 0:00:48]} 0-1

[Event "2nd Goa GM Open 2019"]
[Site "Goa"]
[Date "2019.06.22"]
[Round "7.24"]
[White "Sammed Jaykumar, Shete"]
[Black "Kushagra Mohan"]
[Result "1/2-1/2"]
[ECO "C50"]
[WhiteElo "2431"]
[BlackElo "2207"]
[Annotator "ChessBase"]
[PlyCount "67"]
[EventDate "2019.06.17"]
[EventType "swiss"]
[EventCountry "IND"]
[SourceTitle "playchess.com"]
[Source "ChessBase"]
[SourceQuality "1"]
[TimeControl "5400+30"]

1. e4 {[%emt 0:01:13]} e5 {[%emt 0:00:00]} 2. Nf3 {[%emt 0:00:06]} Nc6 {[%emt 0:00:00]} 3. Bc4 {[%emt 0:00:13]} Bc5 {[%emt 0:00:02]} 4. O-O {[%emt 0:00:11]} Nf6 {[%emt 0:00:04]} 5. d3 {[%emt 0:00:04]} O-O {[%emt 0:00:09]} 6. Bb3 {[%emt 0:01:48]} h6 {[%emt 0:02:18]} 7. c3 {[%emt 0:01:24]} d6 {[%emt 0:00:13]} 8. Nbd2 {[%emt 0:00:28]} a6 {[%emt 0:00:14]} 9. h3 {[%emt 0:00:10]} Re8 {[%emt 0:00:21]} 10. Re1 {[%emt 0:00:13]} Ba7 {[%emt 0:00:07]} 11. Nf1 {[%emt 0:00:09]} Be6 {[%emt 0:00:22]} 12. N3h2 {[%emt 0:00:17]} d5 {[%emt 0:03:56]} 13. Qf3 {[%emt 0:00:22]} dxe4 {[%emt 0:02:39]} 14. dxe4 {[%emt 0:00:10]} Bxb3 {[%emt 0:00:20]} 15. axb3 {[%emt 0:00:07]} Qd6 {[%emt 0:01:00]} 16. Ng3 {[%emt 0:00:08]} Ne7 {[%emt 0:00:44]} 17. Ng4 {[%emt 0:00:52]} Nxg4 {[%emt 0:04:34]} 18. hxg4 {[%emt 0:00:32]} Qg6 {[%emt 0:03:51]} 19. b4 {[%emt 0:01:52]} c6 {[%emt 0:02:25]} 20. Ra5 {[%emt 0:04:26]} f6 {[%emt 0:02:30]} 21. Nf5 {[%emt 0:06:23]} Rad8 {[%emt 0:01:47]} 22. g3 {[%emt 0:01:05]} Rd7 {[%emt 0:04:28]} 23. Kg2 {[%emt 0:04:08]} Red8 {[%emt 0:02:12]} 24. Rh1 {[%emt 0:00:30]} Qf7 {[%emt 0:00:30]} 25. Bxh6 {[%emt 0:00:30]} Nxf5 {[%emt 0:00:30]} 26. Qxf5 {[%emt 0:20:33]} g6 {[%emt 0:25:08]} 27. Qf3 {[%emt 0:00:33]} Rd3 {[%emt 0:00:15]} 28. Qe2 {[%emt 0:00:24]} Qc4 {[%emt 0:00:53]} 29. Re1 {[%emt 0:07:15]} Bb6 {[%emt 0:02:34]} 30. Raa1 {[%emt 0:09:05]} g5 {[%emt 0:02:20]} 31. Rad1 {[%emt 0:00:52]} Kh7 {[%emt 0:03:17]} 32. Bf8 {[%emt 0:06:02]} Rxg3+ {[%emt 0:00:37]} 33. Kf1 {[%emt 0:08:04]} Rg1+ {[%emt 0:00:30]} 34. Kxg1 {[%emt 0:00:11]} 1/2-1/2

[Event "2nd Goa GM Open 2019"]
[Site "Goa"]
[Date "2019.06.22"]
[Round "7.25"]
[White "Priyanka, K."]
[Black "Sardana, Rishi"]
[Result "1-0"]
[ECO "B92"]
[WhiteElo "2053"]
[BlackElo "2428"]
[Annotator "ChessBase"]
[PlyCount "85"]
[EventDate "2019.06.17"]
[EventType "swiss"]
[EventCountry "IND"]
[SourceTitle "playchess.com"]
[Source "ChessBase"]
[SourceQuality "1"]
[TimeControl "5400+30"]

1. e4 {[%emt 0:00:13]} c5 {[%emt 0:00:00]} 2. Nf3 {[%emt 0:00:10]} d6 {[%emt 0:00:00]} 3. d4 {[%emt 0:00:08]} cxd4 {[%emt 0:00:00]} 4. Nxd4 {[%emt 0:00:04]} Nf6 {[%emt 0:00:00]} 5. Nc3 {[%emt 0:00:06]} a6 {[%emt 0:00:00]} 6. Be2 {[%emt 0:01:26]} e5 {[%emt 0:00:12]} 7. Nf3 {[%emt 0:00:13]} Be7 {[%emt 0:00:19]} 8. Bg5 {[%emt 0:00:27]} Nbd7 {[%emt 0:00:10]} 9. a4 {[%emt 0:02:34]} h6 {[%emt 0:00:09]} 10. Be3 {[%emt 0:06:19]} Ng4 {[%emt 0:00:25]} 11. Bc1 {[%emt 0:04:28]} Ngf6 {[%emt 0:02:01]} 12. Be3 {[%emt 0:00:36]} b6 {[%emt 0:14:11]} 13. Nd2 {[%emt 0:15:54]} Qc7 {[%emt 0:03:09]} 14. Nc4 {[%emt 0:04:24]} Bb7 {[%emt 0:03:25]} 15. f3 {[%emt 0:01:30]} O-O {[%emt 0:02:19]} 16. Qd2 {[%emt 0:06:43]} Bc6 {[%emt 0:10:11]} 17. Rd1 {[%emt 0:06:35]} Rfd8 {[%emt 0:29:28]} 18. a5 {[%emt 0:14:03]} bxa5 {[%emt 0:05:11]} 19. Ra1 {[%emt 0:01:43]} a4 {[%emt 0:04:52]} 20. Nxa4 {[%emt 0:07:35]} Bxa4 {[%emt 0:05:33]} 21. Rxa4 {[%emt 0:00:15]} Nc5 {[%emt 0:00:11]} 22. Bxc5 {[%emt 0:02:16]} Qxc5 {[%emt 0:00:01]} 23. Ra5 {[%emt 0:01:57]} Qc6 {[%emt 0:01:25]} 24. Ne3 {[%emt 0:05:08]} Rdb8 {[%emt 0:05:43]} 25. Ra2 {[%emt 0:07:01]} Bd8 {[%emt 0:02:11]} 26. O-O {[%emt 0:04:13]} Bb6 {[%emt 0:00:04]} 27. Kh1 {[%emt 0:01:18]} Bxe3 {[%emt 0:00:22]} 28. Qxe3 {[%emt 0:00:05]} Qxc2 {[%emt 0:00:17]} 29. Rc1 {[%emt 0:00:25]} Qb3 {[%emt 0:08:18]} 30. Rc8+ {[%emt 0:00:43]} Rxc8 {[%emt 0:00:32]} 31. Qxb3 {[%emt 0:00:05]} Rc1+ {[%emt 0:00:02]} 32. Bd1 {[%emt 0:00:09]} Nd7 {[%emt 0:01:37]} 33. h3 {[%emt 0:01:03]} Rb8 {[%emt 0:00:49]} 34. Qd5 {[%emt 0:00:51]} Rb4 {[%emt 0:01:27]} 35. Qd2 {[%emt 0:00:25]} Rbc4 {[%emt 0:00:32]} 36. Rxa6 {[%emt 0:01:24]} Nc5 {[%emt 0:00:33]} 37. Ra8+ {[%emt 0:00:49]} Kh7 {[%emt 0:00:06]} 38. Kh2 {[%emt 0:00:08]} Rb1 {[%emt 0:00:48]} 39. Qxd6 {[%emt 0:01:35]} Rcc1 {[%emt 0:01:17]} 40. Rc8 {[%emt 0:01:15]} Rxd1 {[%emt 0:01:19]} 41. Qxc5 {[%emt 0:00:08]} Rh1+ {[%emt 0:00:12]} 42. Kg3 {[%emt 0:00:05]} Rxb2 {[%emt 0:00:24]} 43. Qxe5 {[%emt 0:00:38]} 1-0

[Event "2nd Goa GM Open 2019"]
[Site "Goa"]
[Date "2019.06.22"]
[Round "7.26"]
[White "Muthaiah AL"]
[Black "Matta, Vinay Kumar"]
[Result "0-1"]
[ECO "A48"]
[WhiteElo "2420"]
[BlackElo "2181"]
[Annotator "ChessBase"]
[PlyCount "32"]
[EventDate "2019.06.17"]
[EventType "swiss"]
[EventCountry "IND"]
[SourceTitle "playchess.com"]
[Source "ChessBase"]
[SourceQuality "1"]
[TimeControl "5400+30"]

1. Nf3 {[%emt 0:00:00]} Nf6 {[%emt 0:02:06]} 2. d4 {[%emt 0:00:05]} g6 {[%emt 0:00:12]} 3. Nbd2 {[%emt 0:00:29]} d5 {[%emt 0:00:37]} 4. b4 {[%emt 0:00:29]} Bg7 {[%emt 0:00:14]} 5. e3 {[%emt 0:00:11]} O-O {[%emt 0:00:18]} 6. c4 {[%emt 0:00:19]} a5 {[%emt 0:01:34]} 7. b5 {[%emt 0:00:31]} c5 {[%emt 0:00:43]} 8. bxc6 {[%emt 0:00:39]} Nxc6 {[%emt 0:00:15]} 9. Be2 {[%emt 0:02:46]} dxc4 {[%emt 0:01:34]} 10. Nxc4 {[%emt 0:01:37]} Nd5 {[%emt 0:05:18]} 11. Bd2 {[%emt 0:05:29]} b5 {[%emt 0:02:24]} 12. Nce5 {[%emt 0:01:31]} Nxe5 {[%emt 0:00:08]} 13. Nxe5 {[%emt 0:00:27]} b4 {[%emt 0:02:14]} 14. O-O {[%emt 0:02:15]} Bxe5 {[%emt 0:04:00]} 15. dxe5 {[%emt 0:00:15]} Qc7 {[%emt 0:01:32]} 16. Bf3 {[%emt 0:16:17]} Qxe5 {[%emt 0:20:26]} 0-1

[Event "2nd Goa GM Open 2019"]
[Site "Goa"]
[Date "2019.06.22"]
[Round "7.27"]
[White "Harshavardhan G B"]
[Black "Michelle Catherina, P."]
[Result "0-1"]
[ECO "E32"]
[WhiteElo "2406"]
[BlackElo "2182"]
[Annotator "ChessBase"]
[PlyCount "122"]
[EventDate "2019.06.17"]
[EventType "swiss"]
[EventCountry "IND"]
[SourceTitle "playchess.com"]
[Source "ChessBase"]
[SourceQuality "1"]
[TimeControl "5400+30"]

1. d4 {[%emt 0:00:00]} Nf6 {[%emt 0:01:49]} 2. c4 {[%emt 0:00:00]} e6 {[%emt 0:00:12]} 3. Nc3 {[%emt 0:00:18]} Bb4 {[%emt 0:00:06]} 4. Qc2 {[%emt 0:00:06]} O-O {[%emt 0:00:07]} 5. e4 {[%emt 0:00:07]} d6 {[%emt 0:00:05]} 6. e5 {[%emt 0:01:26]} Bxc3+ {[%emt 0:00:17]} 7. Qxc3 {[%emt 0:00:56]} Ne4 {[%emt 0:02:20]} 8. Qc2 {[%emt 0:06:10]} f5 {[%emt 0:03:22]} 9. exf6 {[%emt 0:00:42]} Nxf6 {[%emt 0:03:29]} 10. Nf3 {[%emt 0:05:36]} e5 {[%emt 0:03:15]} 11. dxe5 {[%emt 0:05:00]} dxe5 {[%emt 0:01:20]} 12. Be3 {[%emt 0:01:19]} Nc6 {[%emt 0:06:26]} 13. c5 {[%emt 0:03:37]} Kh8 {[%emt 0:07:37]} 14. Bc4 {[%emt 0:00:38]} Ng4 15. Qc3 {[%emt 0:19:54]} Nxe3 {[%emt 0:19:37]} 16. Qxe3 {[%emt 0:01:01]} Bg4 {[%emt 0:00:23]} 17. Rd1 {[%emt 0:40:52]} Qf6 {[%emt 0:22:28]} 18. O-O {[%emt 0:01:58]} Bxf3 {[%emt 0:06:57]} 19. Qxf3 {[%emt 0:00:23]} Qxf3 {[%emt 0:02:04]} 20. gxf3 {[%emt 0:00:06]} Nd4 {[%emt 0:05:13]} 21. Bd5 {[%emt 0:00:08]} c6 {[%emt 0:06:25]} 22. Be4 {[%emt 0:00:07]} Rf7 {[%emt 0:01:49]} 23. Rfe1 {[%emt 0:01:03]} Raf8 {[%emt 0:01:28]} 24. Re3 {[%emt 0:00:17]} g6 {[%emt 0:01:22]} 25. Kg2 {[%emt 0:00:57]} Kg7 {[%emt 0:00:07]} 26. b4 {[%emt 0:00:12]} Rf4 {[%emt 0:01:07]} 27. a4 {[%emt 0:00:38]} a6 {[%emt 0:00:18]} 28. Red3 {[%emt 0:01:13]} R8f7 {[%emt 0:00:52]} 29. Rxd4 {[%emt 0:06:42]} exd4 {[%emt 0:00:02]} 30. Rxd4 {[%emt 0:00:06]} Rc7 {[%emt 0:00:43]} 31. Kf1 {[%emt 0:00:57]} Rff7 {[%emt 0:01:19]} 32. Ke2 {[%emt 0:00:14]} Rfd7 {[%emt 0:01:19]} 33. Rc4 {[%emt 0:01:39]} Kf6 {[%emt 0:00:28]} 34. Rc1 {[%emt 0:01:20]} Rd4 {[%emt 0:01:45]} 35. Rb1 {[%emt 0:00:04]} a5 {[%emt 0:00:31]} 36. b5 {[%emt 0:01:24]} Rxa4 {[%emt 0:00:38]} 37. b6 {[%emt 0:00:34]} Re7 {[%emt 0:00:33]} 38. Kd3 {[%emt 0:00:17]} Re8 {[%emt 0:00:18]} 39. h4 {[%emt 0:00:38]} Rd8+ {[%emt 0:00:27]} 40. Kc3 {[%emt 0:00:33]} Rdd4 {[%emt 0:00:37]} 41. Bd3 {[%emt 0:00:41]} Rdb4 {[%emt 0:00:39]} 42. Re1 {[%emt 0:00:33]} Ra3+ {[%emt 0:00:16]} 43. Kc2 {[%emt 0:00:04]} Ra2+ {[%emt 0:00:39]} 44. Kc3 {[%emt 0:00:05]} Ra3+ {[%emt 0:00:21]} 45. Kc2 {[%emt 0:00:20]} Rd4 {[%emt 0:00:22]} 46. Be2 {[%emt 0:00:44]} Rd5 {[%emt 0:00:44]} 47. Kb2 {[%emt 0:00:51]} Ra4 {[%emt 0:00:14]} 48. Rc1 {[%emt 0:00:04]} Rxh4 {[%emt 0:00:18]} 49. Ka3 {[%emt 0:00:22]} Rhh5 {[%emt 0:00:32]} 50. Ba6 {[%emt 0:00:26]} bxa6 {[%emt 0:01:02]} 51. b7 {[%emt 0:00:11]} Rd8 {[%emt 0:00:09]} 52. Ka4 {[%emt 0:00:33]} Rb8 {[%emt 0:00:07]} 53. Rb1 {[%emt 0:00:13]} Rxc5 {[%emt 0:00:08]} 54. Rb6 {[%emt 0:00:03]} Kf5 {[%emt 0:00:23]} 55. f4 {[%emt 0:00:04]} Rb5 {[%emt 0:00:15]} 56. Rxc6 {[%emt 0:00:05]} R8xb7 {[%emt 0:00:08]} 57. Rc2 {[%emt 0:00:16]} h5 {[%emt 0:01:00]} 58. f3 {[%emt 0:00:04]} h4 {[%emt 0:00:08]} 59. Ka3 {[%emt 0:00:14]} h3 {[%emt 0:00:10]} 60. Rh2 {[%emt 0:00:06]} Rb1 {[%emt 0:00:10]} 61. Ka2 {[%emt 0:00:03]} R7b2+ {[%emt 0:00:14]} 0-1

[Event "2nd Goa GM Open 2019"]
[Site "Goa"]
[Date "2019.06.22"]
[Round "7.28"]
[White "Ram, S. Krishnan"]
[Black "Thipsay, Praveen M"]
[Result "0-1"]
[ECO "E95"]
[WhiteElo "2152"]
[BlackElo "2405"]
[Annotator "ChessBase"]
[PlyCount "86"]
[EventDate "2019.06.17"]
[EventType "swiss"]
[EventCountry "IND"]
[SourceTitle "playchess.com"]
[Source "ChessBase"]
[SourceQuality "1"]
[TimeControl "5400+30"]

1. d4 Nf6 {[%emt 0:00:00]} 2. c4 {[%emt 0:01:25]} g6 {[%emt 0:00:05]} 3. Nc3 {[%emt 0:00:35]} Bg7 {[%emt 0:00:08]} 4. e4 {[%emt 0:02:00]} d6 {[%emt 0:00:08]} 5. Nf3 {[%emt 0:03:28]} O-O {[%emt 0:00:21]} 6. Be2 {[%emt 0:00:04]} Nbd7 {[%emt 0:01:49]} 7. O-O {[%emt 0:02:31]} e5 {[%emt 0:00:07]} 8. Re1 {[%emt 0:00:32]} c6 {[%emt 0:01:31]} 9. d5 {[%emt 0:06:33]} c5 {[%emt 0:02:43]} 10. a3 {[%emt 0:02:03]} Ne8 {[%emt 0:08:51]} 11. b4 {[%emt 0:03:35]} f5 {[%emt 0:05:27]} 12. Ng5 {[%emt 0:02:12]} Ndf6 {[%emt 0:02:53]} 13. Bf3 {[%emt 0:12:24]} f4 {[%emt 0:03:43]} 14. bxc5 {[%emt 0:09:37]} dxc5 {[%emt 0:00:07]} 15. a4 Nd6 {[%emt 0:28:36]} 16. Ba3 {[%emt 0:03:21]} b6 {[%emt 0:00:21]} 17. Qd3 {[%emt 0:00:26]} Qe7 {[%emt 0:03:26]} 18. Bd1 {[%emt 0:06:20]} h6 {[%emt 0:11:11]} 19. Nf3 {[%emt 0:00:10]} g5 {[%emt 0:00:04]} 20. a5 {[%emt 0:00:07]} Ba6 {[%emt 0:09:46]} 21. Nd2 {[%emt 0:01:19]} g4 {[%emt 0:00:18]} 22. Ba4 {[%emt 0:04:16]} f3 {[%emt 0:03:23]} 23. g3 {[%emt 0:02:31]} Rab8 {[%emt 0:05:58]} 24. Bc6 {[%emt 0:02:38]} h5 {[%emt 0:01:43]} 25. axb6 {[%emt 0:01:24]} axb6 {[%emt 0:00:04]} 26. Bxc5 {[%emt 0:00:07]} bxc5 {[%emt 0:00:07]} 27. Rxa6 {[%emt 0:00:01]} h4 {[%emt 0:00:07]} 28. Rb1 {[%emt 0:02:12]} hxg3 {[%emt 0:00:25]} 29. hxg3 {[%emt 0:01:34]} Rxb1+ {[%emt 0:01:33]} 30. Ndxb1 {[%emt 0:00:46]} Bh6 {[%emt 0:01:26]} 31. Nb5 {[%emt 0:05:31]} Rd8 {[%emt 0:03:29]} 32. Ra7 {[%emt 0:02:50]} Qf8 {[%emt 0:00:06]} 33. Qc3 {[%emt 0:04:10]} Nf7 {[%emt 0:01:04]} 34. Nc7 {[%emt 0:05:29]} Bg5 {[%emt 0:00:15]} 35. Qd3 {[%emt 0:05:21]} Qh6 {[%emt 0:01:12]} 36. Nc3 {[%emt 0:00:06]} Bd2 {[%emt 0:00:30]} 37. Ne6 {[%emt 0:02:49]} Bxc3 {[%emt 0:01:23]} 38. Rxf7 {[%emt 0:00:15]} Kxf7 {[%emt 0:01:34]} 39. Nxd8+ {[%emt 0:00:02]} Ke7 {[%emt 0:00:02]} 40. Nb7 {[%emt 0:00:12]} Bd4 {[%emt 0:00:13]} 41. d6+ {[%emt 0:01:07]} Kf7 {[%emt 0:01:08]} 42. Qf1 {[%emt 0:00:15]} Nh5 {[%emt 0:00:21]} 43. Qd3 Kg8 0-1

[Event "2nd Goa GM Open 2019"]
[Site "Goa"]
[Date "2019.06.22"]
[Round "7.30"]
[White "Viani Antonio Dcunha"]
[Black "Mahindrakar Indrajeet"]
[Result "1/2-1/2"]
[ECO "C00"]
[WhiteElo "2362"]
[BlackElo "2100"]
[Annotator "ChessBase"]
[PlyCount "119"]
[EventDate "2019.06.17"]
[EventType "swiss"]
[EventCountry "IND"]
[SourceTitle "playchess.com"]
[Source "ChessBase"]
[SourceQuality "1"]
[TimeControl "5400+30"]

1. e4 {[%emt 0:00:00]} e6 {[%emt 0:14:37]} 2. d3 {[%emt 0:00:09]} d5 {[%emt 0:00:21]} 3. Nd2 {[%emt 0:00:08]} c5 {[%emt 0:00:15]} 4. Ngf3 {[%emt 0:00:09]} Nc6 {[%emt 0:00:25]} 5. g3 {[%emt 0:00:17]} g6 {[%emt 0:00:14]} 6. Bg2 {[%emt 0:00:09]} Bg7 {[%emt 0:00:09]} 7. O-O {[%emt 0:00:04]} Nf6 {[%emt 0:00:20]} 8. Re1 {[%emt 0:00:49]} O-O {[%emt 0:01:21]} 9. c3 {[%emt 0:03:19]} b5 {[%emt 0:09:30]} 10. e5 {[%emt 0:10:05]} Nd7 {[%emt 0:02:37]} 11. d4 {[%emt 0:00:09]} b4 {[%emt 0:06:59]} 12. Nf1 {[%emt 0:04:11]} Ba6 {[%emt 0:06:14]} 13. h4 {[%emt 0:03:05]} Rc8 {[%emt 0:04:08]} 14. h5 {[%emt 0:08:07]} bxc3 {[%emt 0:08:03]} 15. bxc3 {[%emt 0:00:51]} cxd4 {[%emt 0:10:32]} 16. cxd4 {[%emt 0:00:51]} Nb4 {[%emt 0:03:20]} 17. Qa4 {[%emt 0:05:43]} Bxf1 {[%emt 0:09:08]} 18. Rxf1 {[%emt 0:00:52]} Rc4 {[%emt 0:01:51]} 19. Qd1 {[%emt 0:14:10]} Qc7 {[%emt 0:02:53]} 20. a3 {[%emt 0:02:07]} Nc2 {[%emt 0:02:37]} 21. Rb1 {[%emt 0:05:32]} Rc8 {[%emt 0:00:49]} 22. Bb2 {[%emt 0:09:12]} Nb6 {[%emt 0:01:59]} 23. Nd2 {[%emt 0:03:24]} Rc6 {[%emt 0:01:30]} 24. Nb3 {[%emt 0:02:06]} Na4 {[%emt 0:01:48]} 25. Nc5 {[%emt 0:01:13]} Nxc5 {[%emt 0:00:57]} 26. Qxc2 {[%emt 0:00:21]} Ne4 {[%emt 0:03:54]} 27. Qd3 {[%emt 0:01:40]} Nc3 {[%emt 0:01:08]} 28. Rbe1 {[%emt 0:01:59]} Qb6 {[%emt 0:02:34]} 29. Bc1 {[%emt 0:03:37]} Nb5 {[%emt 0:00:25]} 30. a4 {[%emt 0:05:05]} Nc3 {[%emt 0:01:33]} 31. Be3 {[%emt 0:02:13]} Rc4 {[%emt 0:00:40]} 32. f4 {[%emt 0:02:26]} Nxa4 {[%emt 0:00:34]} 33. f5 {[%emt 0:01:49]} Nb2 {[%emt 0:00:55]} 34. Qe2 {[%emt 0:01:15]} Rc2 {[%emt 0:00:42]} 35. Qf3 {[%emt 0:00:05]} exf5 {[%emt 0:01:06]} 36. Qxd5 {[%emt 0:00:37]} Nc4 {[%emt 0:00:25]} 37. Bf2 {[%emt 0:00:42]} Rd8 {[%emt 0:00:35]} 38. Qf3 {[%emt 0:00:28]} Nd2 {[%emt 0:00:21]} 39. Qd3 Rb2 {[%emt 0:00:59]} 40. d5 {[%emt 0:02:17]} Qb3 {[%emt 0:00:48]} 41. Qxb3 {[%emt 0:00:18]} Rxb3 {[%emt 0:00:00]} 42. e6 {[%emt 0:00:11]} fxe6 {[%emt 0:00:38]} 43. dxe6 {[%emt 0:00:14]} Bf6 {[%emt 0:00:56]} 44. e7 {[%emt 0:00:15]} Bxe7 {[%emt 0:00:17]} 45. Rxe7 {[%emt 0:00:18]} Nxf1 {[%emt 0:00:04]} 46. Bxf1 {[%emt 0:00:28]} Rb1 {[%emt 0:00:18]} 47. Kg2 {[%emt 0:01:38]} Rd2 {[%emt 0:00:54]} 48. Be2 {[%emt 0:01:40]} Rbb2 {[%emt 0:00:40]} 49. Kf3 {[%emt 0:01:21]} g5 {[%emt 0:00:51]} 50. Bc4+ {[%emt 0:02:41]} Kf8 {[%emt 0:00:01]} 51. Bc5 Rf2+ {[%emt 0:00:45]} 52. Ke3 {[%emt 0:00:16]} f4+ {[%emt 0:00:20]} 53. gxf4 {[%emt 0:00:04]} gxf4+ {[%emt 0:00:11]} 54. Kd4 {[%emt 0:00:18]} Rfd2+ {[%emt 0:00:46]} 55. Bd3 {[%emt 0:00:18]} Kg8 {[%emt 0:00:23]} 56. Kc3 {[%emt 0:02:11]} Rxd3+ {[%emt 0:00:34]} 57. Kxd3 {[%emt 0:00:06]} Rh2 {[%emt 0:00:40]} 58. Re5 {[%emt 0:00:38]} a5 {[%emt 0:00:38]} 59. Ke4 {[%emt 0:00:39]} Rh4 {[%emt 0:00:39]} 60. Be7 {[%emt 0:01:09]} 1/2-1/2